[Event "Betsys MČR v online bleskovém šachu 2021"]
[Site "Chess.com"]
[Date "2021.04.17"]
[Round "13"]
[White "Svandik49"]
[Black "Mitram64"]
[Result "1/2-1/2"]
[WhiteElo "2260"]
[BlackElo "2108"]
[TimeControl "180+1"]
[EndTime "11:11:46 PDT"]
[Termination "Remíza opakováním pozice"]

1. e4 {[%clk 0:02:16]} 1... c6 {[%clk 0:02:59.1]} 2. d3 {[%clk 0:02:15.1]} 2...
d5 {[%clk 0:02:59]} 3. Nd2 {[%clk 0:02:15.8]} 3... e5 {[%clk 0:02:58.3]} 4. g3
{[%clk 0:02:15.9]} 4... Nf6 {[%clk 0:02:56.4]} 5. Bg2 {[%clk 0:02:16]} 5... Bc5
{[%clk 0:02:52.5]} 6. Ngf3 {[%clk 0:02:15.6]} 6... Nbd7 {[%clk 0:02:51.1]} 7.
O-O {[%clk 0:02:15.7]} 7... O-O {[%clk 0:02:50.4]} 8. Re1 {[%clk 0:02:05.4]}
8... Re8 {[%clk 0:02:49.7]} 9. c3 {[%clk 0:02:03.5]} 9... dxe4 {[%clk
0:02:46.3]} 10. dxe4 {[%clk 0:02:02.8]} 10... Qb6 {[%clk 0:02:30.6]} 11. Qe2
{[%clk 0:01:58.3]} 11... a5 {[%clk 0:02:28.5]} 12. Nc4 {[%clk 0:01:53.8]} 12...
Qc7 {[%clk 0:02:26.8]} 13. Rd1 {[%clk 0:01:38.7]} 13... b5 {[%clk 0:02:22.2]}
14. Ncd2 {[%clk 0:01:31.8]} 14... Nf8 {[%clk 0:02:17.1]} 15. Nf1 {[%clk
0:01:29.1]} 15... Ba6 {[%clk 0:02:14.4]} 16. Qc2 {[%clk 0:01:24.3]} 16... Ng4
{[%clk 0:02:05]} 17. Ne3 {[%clk 0:00:53.1]} 17... Nxe3 {[%clk 0:02:03.3]} 18.
Bxe3 {[%clk 0:00:52.3]} 18... Bxe3 {[%clk 0:02:02.5]} 19. fxe3 {[%clk
0:00:53.2]} 19... Rad8 {[%clk 0:01:59.8]} 20. Bh3 {[%clk 0:00:50.9]} 20... f6
{[%clk 0:01:40.8]} 21. a4 {[%clk 0:00:47.7]} 21... Qb6 {[%clk 0:01:30.4]} 22.
Kf2 {[%clk 0:00:44.2]} 22... bxa4 {[%clk 0:01:21.1]} 23. Ng1 {[%clk 0:00:09.8]}
23... Rb8 {[%clk 0:01:09.8]} 24. Rd2 {[%clk 0:00:09.1]} 24... Ne6 {[%clk
0:01:04.8]} 25. Bxe6+ {[%clk 0:00:08.5]} 25... Rxe6 {[%clk 0:01:03.7]} 26. Rxa4
{[%clk 0:00:07.6]} 26... Ree8 {[%clk 0:00:56.3]} 27. Ra3 {[%clk 0:00:07.9]}
27... Red8 {[%clk 0:00:53.2]} 28. Nf3 {[%clk 0:00:07.5]} 28... Bc4 {[%clk
0:00:49.3]} 29. Qc1 {[%clk 0:00:04.5]} 29... Qc5 {[%clk 0:00:45.7]} 30. Ne1
{[%clk 0:00:02.8]} 30... Qb6 {[%clk 0:00:42.8]} 31. Nf3 {[%clk 0:00:01.5]} 31...
Be6 {[%clk 0:00:42.5]} 32. Qc2 {[%clk 0:00:01.1]} 32... Bg4 {[%clk 0:00:41.6]}
33. Qc1 {[%clk 0:00:01.2]} 33... Bxf3 {[%clk 0:00:40.8]} 34. Kxf3 {[%clk
0:00:02.1]} 34... Rxd2 {[%clk 0:00:38.2]} 35. Qxd2 {[%clk 0:00:03]} 35... Qxb2
{[%clk 0:00:38]} 36. Qxb2 {[%clk 0:00:03.9]} 36... Rxb2 {[%clk 0:00:37.3]} 37.
Rxa5 {[%clk 0:00:04.8]} 37... Rb3 {[%clk 0:00:35.6]} 38. Rc5 {[%clk 0:00:05.2]}
38... Rb6 {[%clk 0:00:34.9]} 39. Ra5 {[%clk 0:00:04.4]} 39... Kf7 {[%clk
0:00:34.1]} 40. Ra7+ {[%clk 0:00:04.6]} 40... Kg6 {[%clk 0:00:33.8]} 41. Rc7
{[%clk 0:00:05]} 41... h5 {[%clk 0:00:33]} 42. h4 {[%clk 0:00:04.2]} 42... Kh6
{[%clk 0:00:31.7]} 43. c4 {[%clk 0:00:04.5]} 43... g5 {[%clk 0:00:27.9]} 44.
hxg5+ {[%clk 0:00:04.8]} 44... Kxg5 {[%clk 0:00:25]} 45. c5 {[%clk 0:00:04.3]}
45... Ra6 {[%clk 0:00:24.1]} 46. Rc8 {[%clk 0:00:04.8]} 46... Kg6 {[%clk
0:00:23.4]} 47. Kg2 {[%clk 0:00:04.7]} 47... Ra2+ {[%clk 0:00:19.9]} 48. Kf3
{[%clk 0:00:05.1]} 48... Ra6 {[%clk 0:00:18.3]} 49. Rg8+ {[%clk 0:00:05.2]}
49... Kf7 {[%clk 0:00:17.5]} 50. Rc8 {[%clk 0:00:03.7]} 50... Kg6 {[%clk
0:00:17.1]} 1/2-1/2

[Event "Betsys MČR v online bleskovém šachu 2021"]
[Site "Chess.com"]
[Date "2021.04.17"]
[Round "13"]
[White "EliasD123"]
[Black "pavelchrz"]
[Result "0-1"]
[WhiteElo "1336"]
[BlackElo "1663"]
[TimeControl "180+1"]
[EndTime "11:11:47 PDT"]
[Termination "Uživatel pavelchrz zvítězil matem"]

1. e4 {[%clk 0:03:00.9]} 1... e5 {[%clk 0:02:59.7]} 2. Nf3 {[%clk 0:02:59.5]}
2... Nc6 {[%clk 0:02:59.5]} 3. Bc4 {[%clk 0:02:57.8]} 3... Nf6 {[%clk
0:02:59.6]} 4. Nc3 {[%clk 0:02:57.2]} 4... Nxe4 {[%clk 0:02:58]} 5. Nxe4 {[%clk
0:02:56.5]} 5... d5 {[%clk 0:02:58.3]} 6. Bd3 {[%clk 0:02:56]} 6... dxe4 {[%clk
0:02:58.4]} 7. Bxe4 {[%clk 0:02:56.6]} 7... Bg4 {[%clk 0:02:57.6]} 8. d3 {[%clk
0:02:56]} 8... Nd4 {[%clk 0:02:57.6]} 9. h3 {[%clk 0:02:54.7]} 9... Bxf3 {[%clk
0:02:50.8]} 10. gxf3 {[%clk 0:02:54.2]} 10... Bc5 {[%clk 0:02:50.5]} 11. Be3
{[%clk 0:02:51.1]} 11... Qf6 {[%clk 0:02:50]} 12. Bxd4 {[%clk 0:02:45.9]} 12...
Bxd4 {[%clk 0:02:49.4]} 13. c3 {[%clk 0:02:45.9]} 13... Bb6 {[%clk 0:02:46]} 14.
Qd2 {[%clk 0:02:45.6]} 14... O-O-O {[%clk 0:02:42.3]} 15. O-O-O {[%clk
0:02:43.1]} 15... Qh4 {[%clk 0:02:33.3]} 16. Qc2 {[%clk 0:02:36.8]} 16... Bxf2
{[%clk 0:02:24.6]} 17. Qb3 {[%clk 0:02:29.8]} 17... Bb6 {[%clk 0:02:15.4]} 18.
a4 {[%clk 0:02:26.5]} 18... f5 {[%clk 0:02:07.7]} 19. Bxf5+ {[%clk 0:02:24.1]}
19... Kb8 {[%clk 0:02:07.9]} 20. Be4 {[%clk 0:02:22.3]} 20... Qg5+ {[%clk
0:01:57.4]} 21. Kb1 {[%clk 0:02:20.5]} 21... c6 {[%clk 0:01:53.6]} 22. a5 {[%clk
0:02:16.5]} 22... Bxa5 {[%clk 0:01:49.2]} 23. Bxc6 {[%clk 0:02:15.5]} 23... Bb6
{[%clk 0:01:49.1]} 24. Be4 {[%clk 0:02:11.1]} 24... Qe3 {[%clk 0:01:42.1]} 25.
c4 {[%clk 0:02:08]} 25... Qd4 {[%clk 0:01:39.6]} 26. Rhe1 {[%clk 0:02:01]} 26...
Rd6 {[%clk 0:01:35.9]} 27. Rc1 {[%clk 0:01:58.6]} 27... Rc8 {[%clk 0:01:34]} 28.
Rc2 {[%clk 0:01:43.8]} 28... Rc5 {[%clk 0:01:33.2]} 29. Rec1 {[%clk 0:01:38.9]}
29... g5 {[%clk 0:01:16.8]} 30. Qa4 {[%clk 0:01:34.9]} 30... Rd7 {[%clk
0:00:59.6]} 31. b4 {[%clk 0:01:32.4]} 31... Rc8 {[%clk 0:00:50.4]} 32. c5 {[%clk
0:01:25.5]} 32... Bd8 {[%clk 0:00:47.6]} 33. Rc4 {[%clk 0:01:23.2]} 33... Qf2
{[%clk 0:00:40.5]} 34. Qxd7 {[%clk 0:01:22.1]} 34... Bc7 {[%clk 0:00:24.9]} 35.
c6 {[%clk 0:01:13.5]} 35... b6 {[%clk 0:00:24.8]} 36. Bf5 {[%clk 0:00:57.2]}
36... Rd8 {[%clk 0:00:23.2]} 37. Qe7 {[%clk 0:00:48.6]} 37... Qxf3 {[%clk
0:00:21.8]} 38. Qe6 {[%clk 0:00:40.3]} 38... Qf2 {[%clk 0:00:19.7]} 39. d4
{[%clk 0:00:24.7]} 39... exd4 {[%clk 0:00:18.5]} 40. Re1 {[%clk 0:00:22.9]}
40... h5 {[%clk 0:00:13.8]} 41. b5 {[%clk 0:00:18.1]} 41... g4 {[%clk 0:00:12]}
42. hxg4 {[%clk 0:00:17.1]} 42... h4 {[%clk 0:00:11.5]} 43. g5 {[%clk
0:00:17.3]} 43... h3 {[%clk 0:00:11.2]} 44. Bxh3 {[%clk 0:00:17.4]} 44... Qg3
{[%clk 0:00:09.5]} 45. g6 {[%clk 0:00:16.9]} 45... Qb3+ {[%clk 0:00:08.6]} 46.
Kc1 {[%clk 0:00:15.4]} 46... Bf4+ {[%clk 0:00:07.8]} 47. Re3 {[%clk 0:00:11]}
47... Bxe3+ {[%clk 0:00:07]} 48. Qxe3 {[%clk 0:00:11.1]} 48... dxe3 {[%clk
0:00:06.8]} 49. Re4 {[%clk 0:00:06.9]} 49... Rd1# {[%clk 0:00:06.1]} 0-1

[Event "Betsys MČR v online bleskovém šachu 2021"]
[Site "Chess.com"]
[Date "2021.04.17"]
[Round "13"]
[White "Toman_26"]
[Black "Fafin1"]
[Result "1-0"]
[WhiteElo "1151"]
[BlackElo "1258"]
[TimeControl "180+1"]
[EndTime "11:11:49 PDT"]
[Termination "Uživatel Toman_26 zvítězil na čas"]

1. e4 {[%clk 0:03:00.9]} 1... e5 {[%clk 0:02:58.3]} 2. Nf3 {[%clk 0:03:00.8]}
2... d6 {[%clk 0:02:54.6]} 3. d4 {[%clk 0:02:58.6]} 3... exd4 {[%clk 0:02:53.1]}
4. Nxd4 {[%clk 0:02:59.1]} 4... Nf6 {[%clk 0:02:46.6]} 5. Bd3 {[%clk 0:02:57.1]}
5... Bg4 {[%clk 0:02:41.8]} 6. f3 {[%clk 0:02:55.7]} 6... Bh5 {[%clk 0:02:41.3]}
7. O-O {[%clk 0:02:55.1]} 7... Be7 {[%clk 0:02:39]} 8. c4 {[%clk 0:02:55.1]}
8... h6 {[%clk 0:02:37.6]} 9. Nc3 {[%clk 0:02:55]} 9... O-O {[%clk 0:02:35.8]}
10. Be3 {[%clk 0:02:53.3]} 10... c5 {[%clk 0:02:35]} 11. Nc2 {[%clk 0:02:46.3]}
11... Nc6 {[%clk 0:02:34.2]} 12. a3 {[%clk 0:02:42.8]} 12... Rb8 {[%clk
0:02:33.6]} 13. b4 {[%clk 0:02:42]} 13... cxb4 {[%clk 0:02:24.9]} 14. axb4
{[%clk 0:02:41.3]} 14... a6 {[%clk 0:02:16.4]} 15. b5 {[%clk 0:02:37]} 15...
axb5 {[%clk 0:02:15.6]} 16. cxb5 {[%clk 0:02:36.8]} 16... Ne5 {[%clk 0:02:09.2]}
17. Be2 {[%clk 0:02:15.9]} 17... b6 {[%clk 0:02:08.1]} 18. Nd5 {[%clk
0:02:14.6]} 18... Nxd5 {[%clk 0:02:06.3]} 19. Qxd5 {[%clk 0:02:13.2]} 19... Rc8
{[%clk 0:01:57.1]} 20. Nd4 {[%clk 0:02:09.2]} 20... Qd7 {[%clk 0:01:45.9]} 21.
Rfc1 {[%clk 0:02:07]} 21... Kh8 {[%clk 0:01:37.5]} 22. Nc6 {[%clk 0:02:00.6]}
22... Nxc6 {[%clk 0:01:35.4]} 23. Rxc6 {[%clk 0:01:59.1]} 23... Rxc6 {[%clk
0:01:22.1]} 24. bxc6 {[%clk 0:01:53.3]} 24... Qc7 {[%clk 0:01:18.1]} 25. Qb5
{[%clk 0:01:47.1]} 25... Rb8 {[%clk 0:01:13.3]} 26. Ra6 {[%clk 0:01:35.5]} 26...
Bd8 {[%clk 0:01:08.3]} 27. Bc4 {[%clk 0:01:24.5]} 27... f6 {[%clk 0:01:06.9]}
28. Bd5 {[%clk 0:01:17.2]} 28... Be8 {[%clk 0:01:01.2]} 29. Ra1 {[%clk
0:01:03.5]} 29... Kh7 {[%clk 0:00:58.8]} 30. Bf2 {[%clk 0:00:44.5]} 30... Rc8
{[%clk 0:00:57.6]} 31. Rc1 {[%clk 0:00:40.4]} 31... Ra8 {[%clk 0:00:49.1]} 32.
Rb1 {[%clk 0:00:32.2]} 32... Ra5 {[%clk 0:00:47]} 33. Qxb6 {[%clk 0:00:27.3]}
33... Qxb6 {[%clk 0:00:45.6]} 34. Bxb6 {[%clk 0:00:23.6]} 34... Bxb6+ {[%clk
0:00:44.1]} 35. Rxb6 {[%clk 0:00:23.5]} 35... Ra1+ {[%clk 0:00:42.6]} 36. Kf2
{[%clk 0:00:23.9]} 36... Rc1 {[%clk 0:00:34.3]} 37. Kg3 {[%clk 0:00:17.3]} 37...
Kg6 {[%clk 0:00:31.9]} 38. c7 {[%clk 0:00:16.5]} 38... Rxc7 {[%clk 0:00:28.5]}
39. Rxd6 {[%clk 0:00:16.7]} 39... Kg5 {[%clk 0:00:22.4]} 40. h4+ {[%clk
0:00:16.7]} 40... Kg6 {[%clk 0:00:20.2]} 41. Kg4 {[%clk 0:00:16.5]} 41... Rc2
{[%clk 0:00:17.5]} 42. g3 {[%clk 0:00:16.3]} 42... Bf7 {[%clk 0:00:14.8]} 43.
h5+ {[%clk 0:00:16.4]} 43... Kh7 {[%clk 0:00:12.4]} 44. Bxf7 {[%clk 0:00:16.1]}
44... Rd2 {[%clk 0:00:10.4]} 45. Bg6+ {[%clk 0:00:15]} 45... Kg8 {[%clk
0:00:08.6]} 46. Rxd2 {[%clk 0:00:15.5]} 46... Kf8 {[%clk 0:00:02.6]} 47. f4
{[%clk 0:00:15.6]} 47... Ke7 {[%clk 0:00:02.2]} 48. e5 {[%clk 0:00:15.8]} 48...
fxe5 {[%clk 0:00:01.1]} 49. fxe5 {[%clk 0:00:16.2]} 1-0

[Event "Betsys MČR v online bleskovém šachu 2021"]
[Site "Chess.com"]
[Date "2021.04.17"]
[Round "13"]
[White "Milan_Jancek"]
[Black "Bavorak15"]
[Result "1-0"]
[WhiteElo "1820"]
[BlackElo "1633"]
[TimeControl "180+1"]
[EndTime "11:11:50 PDT"]
[Termination "Uživatel Milan_Jancek zvítězil na čas"]

1. c4 {[%clk 0:02:57.9]} 1... Nf6 {[%clk 0:02:59.3]} 2. Nc3 {[%clk 0:02:56.6]}
2... g6 {[%clk 0:02:58.2]} 3. g3 {[%clk 0:02:54.9]} 3... Bg7 {[%clk 0:02:57.7]}
4. Bg2 {[%clk 0:02:55.5]} 4... O-O {[%clk 0:02:56.1]} 5. d3 {[%clk 0:02:55.7]}
5... c6 {[%clk 0:02:46.1]} 6. Nf3 {[%clk 0:02:55.2]} 6... d5 {[%clk 0:02:43.5]}
7. cxd5 {[%clk 0:02:54.7]} 7... cxd5 {[%clk 0:02:44.4]} 8. d4 {[%clk 0:02:54.9]}
8... b6 {[%clk 0:02:39.9]} 9. O-O {[%clk 0:02:53]} 9... Bb7 {[%clk 0:02:40]} 10.
Bf4 {[%clk 0:02:50]} 10... a6 {[%clk 0:02:17.5]} 11. Rc1 {[%clk 0:02:46]} 11...
Nc6 {[%clk 0:02:13.9]} 12. a3 {[%clk 0:02:43.9]} 12... Rc8 {[%clk 0:02:13]} 13.
Qd2 {[%clk 0:02:28.8]} 13... Ne4 {[%clk 0:01:56]} 14. Qe3 {[%clk 0:02:09.2]}
14... Nxc3 {[%clk 0:01:41.2]} 15. Rxc3 {[%clk 0:01:54.8]} 15... Qd7 {[%clk
0:01:33.1]} 16. Bh6 {[%clk 0:01:42.9]} 16... Na5 {[%clk 0:01:12.7]} 17. Bxg7
{[%clk 0:01:39.4]} 17... Kxg7 {[%clk 0:01:13.6]} 18. Ne5 {[%clk 0:01:16.1]}
18... Qe6 {[%clk 0:01:02.3]} 19. Rfc1 {[%clk 0:01:15.4]} 19... f6 {[%clk
0:00:55.1]} 20. Rxc8 {[%clk 0:01:04.2]} 20... Rxc8 {[%clk 0:00:54.9]} 21. Rxc8
{[%clk 0:01:03.8]} 21... Qxc8 {[%clk 0:00:45]} 22. Nd3 {[%clk 0:01:02.5]} 22...
Qc7 {[%clk 0:00:29]} 23. Nb4 {[%clk 0:01:00.1]} 23... Nc4 {[%clk 0:00:26.7]} 24.
Qc3 {[%clk 0:00:56.5]} 24... Qd6 {[%clk 0:00:25.2]} 25. e3 {[%clk 0:00:37]}
25... a5 {[%clk 0:00:24.5]} 26. Nd3 {[%clk 0:00:35.8]} 26... Kf7 {[%clk
0:00:19.2]} 27. Bf1 {[%clk 0:00:35.7]} 27... Ba6 {[%clk 0:00:16.2]} 28. Nf4
{[%clk 0:00:32.6]} 28... g5 {[%clk 0:00:15.1]} 29. Ng2 {[%clk 0:00:32.1]} 29...
b5 {[%clk 0:00:12.1]} 30. Qc1 {[%clk 0:00:23.8]} 30... h6 {[%clk 0:00:10]} 31.
b3 {[%clk 0:00:23.5]} 31... Nb6 {[%clk 0:00:08.6]} 32. Bd3 {[%clk 0:00:19.9]}
32... Nd7 {[%clk 0:00:07.8]} 33. Ne1 {[%clk 0:00:19.8]} 33... b4 {[%clk
0:00:05.9]} 34. a4 {[%clk 0:00:19.8]} 34... Bxd3 {[%clk 0:00:05.3]} 35. Nxd3
{[%clk 0:00:20]} 35... Kg7 {[%clk 0:00:03.9]} 36. Kg2 {[%clk 0:00:19.4]} 36...
Kf7 {[%clk 0:00:03.9]} 37. Qc2 {[%clk 0:00:18]} 37... Kg7 {[%clk 0:00:02.9]} 38.
Ne1 {[%clk 0:00:17.5]} 38... Qb6 {[%clk 0:00:02.6]} 39. Nf3 {[%clk 0:00:16.7]}
39... Qd6 {[%clk 0:00:03]} 40. h4 {[%clk 0:00:16.5]} 40... Qb6 {[%clk
0:00:02.4]} 41. hxg5 {[%clk 0:00:14.7]} 41... hxg5 {[%clk 0:00:03.3]} 42. Qf5
{[%clk 0:00:12.7]} 42... Qd6 {[%clk 0:00:02.8]} 43. Qc2 {[%clk 0:00:08.6]} 43...
Qb6 {[%clk 0:00:02.4]} 44. Nh2 {[%clk 0:00:05.8]} 44... Qd6 {[%clk 0:00:02.9]}
45. f4 {[%clk 0:00:05.8]} 45... Qb6 {[%clk 0:00:01.8]} 46. Ng4 {[%clk
0:00:05.7]} 46... Qd6 {[%clk 0:00:01.4]} 47. Qf5 {[%clk 0:00:05.6]} 1-0

[Event "Betsys MČR v online bleskovém šachu 2021"]
[Site "Chess.com"]
[Date "2021.04.17"]
[Round "13"]
[White "jarosymon"]
[Black "Svisthorsky"]
[Result "1-0"]
[WhiteElo "1713"]
[BlackElo "1460"]
[TimeControl "180+1"]
[EndTime "11:11:51 PDT"]
[Termination "Uživatel jarosymon zvítězil na čas"]

1. e4 {[%clk 0:02:50.5]} 1... e5 {[%clk 0:02:59.9]} 2. Nf3 {[%clk 0:02:48.2]}
2... Nc6 {[%clk 0:02:58.7]} 3. d4 {[%clk 0:02:47.7]} 3... exd4 {[%clk
0:02:57.9]} 4. Nxd4 {[%clk 0:02:47.4]} 4... Nxd4 {[%clk 0:02:56.7]} 5. Qxd4
{[%clk 0:02:46.7]} 5... b6 {[%clk 0:02:49.9]} 6. c4 {[%clk 0:02:41.1]} 6... Bb7
{[%clk 0:02:49.7]} 7. Nc3 {[%clk 0:02:39.4]} 7... Bc5 {[%clk 0:02:49.4]} 8. Qxg7
{[%clk 0:02:34.5]} 8... Qf6 {[%clk 0:02:47.4]} 9. Qxf6 {[%clk 0:02:34.2]} 9...
Nxf6 {[%clk 0:02:47.2]} 10. f3 {[%clk 0:02:33.6]} 10... O-O-O {[%clk 0:02:36.3]}
11. Bg5 {[%clk 0:02:28.4]} 11... Be7 {[%clk 0:02:34.7]} 12. O-O-O {[%clk
0:02:24.9]} 12... h6 {[%clk 0:02:34.3]} 13. Bh4 {[%clk 0:02:22.4]} 13... Rhe8
{[%clk 0:02:30.8]} 14. Be2 {[%clk 0:02:01.4]} 14... Nh7 {[%clk 0:02:30]} 15. Bf2
{[%clk 0:01:52.4]} 15... Bb4 {[%clk 0:02:10.3]} 16. Kc2 {[%clk 0:01:51.2]} 16...
Be7 {[%clk 0:02:00.1]} 17. Nd5 {[%clk 0:01:49.6]} 17... Bf8 {[%clk 0:01:52.3]}
18. Bh4 {[%clk 0:01:41.6]} 18... f6 {[%clk 0:01:45.6]} 19. Nxf6 {[%clk
0:01:34.7]} 19... Nxf6 {[%clk 0:01:45.4]} 20. Bxf6 {[%clk 0:01:33.8]} 20... Be7
{[%clk 0:01:45.9]} 21. Bxe7 {[%clk 0:01:32.2]} 21... Rxe7 {[%clk 0:01:46]} 22.
h4 {[%clk 0:01:29.5]} 22... Rg7 {[%clk 0:01:44.6]} 23. g4 {[%clk 0:01:28.2]}
23... c5 {[%clk 0:01:38.9]} 24. Rd6 {[%clk 0:01:25.9]} 24... Rh7 {[%clk
0:01:29.7]} 25. Rhd1 {[%clk 0:01:19.7]} 25... Bc6 {[%clk 0:01:26.8]} 26. a3
{[%clk 0:01:15.8]} 26... a5 {[%clk 0:01:24.8]} 27. b3 {[%clk 0:01:14.1]} 27...
Kc7 {[%clk 0:01:23.9]} 28. Kc3 {[%clk 0:01:11.4]} 28... Rf8 {[%clk 0:01:11.2]}
29. b4 {[%clk 0:00:54.2]} 29... axb4+ {[%clk 0:01:08]} 30. axb4 {[%clk
0:00:53.4]} 30... Ra8 {[%clk 0:01:05.8]} 31. b5 {[%clk 0:00:49.9]} 31... Bb7
{[%clk 0:01:01.1]} 32. Kb3 {[%clk 0:00:43.8]} 32... Rd8 {[%clk 0:00:55.1]} 33.
Rf6 {[%clk 0:00:38.2]} 33... Re8 {[%clk 0:00:40.4]} 34. Rdd6 {[%clk 0:00:36.8]}
34... Re6 {[%clk 0:00:29.6]} 35. Rdxe6 {[%clk 0:00:35]} 35... dxe6 {[%clk
0:00:29.3]} 36. Rxe6 {[%clk 0:00:34.8]} 36... h5 {[%clk 0:00:26]} 37. g5 {[%clk
0:00:33.3]} 37... Rg7 {[%clk 0:00:25.6]} 38. Rh6 {[%clk 0:00:32.4]} 38... Bc8
{[%clk 0:00:23.4]} 39. Rxh5 {[%clk 0:00:30.8]} 39... Kd6 {[%clk 0:00:19.1]} 40.
f4 {[%clk 0:00:27.6]} 40... Rf7 {[%clk 0:00:17]} 41. Rh6+ {[%clk 0:00:26]} 41...
Ke7 {[%clk 0:00:15.4]} 42. f5 {[%clk 0:00:24.2]} 42... Bxf5 {[%clk 0:00:12.8]}
43. exf5 {[%clk 0:00:22.2]} 43... Rxf5 {[%clk 0:00:12.9]} 44. Rf6 {[%clk
0:00:19.7]} 44... Rxf6 {[%clk 0:00:11.3]} 45. gxf6+ {[%clk 0:00:19]} 45... Kxf6
{[%clk 0:00:11.1]} 46. Kc3 {[%clk 0:00:18.8]} 46... Kg6 {[%clk 0:00:10.1]} 47.
Kd3 {[%clk 0:00:17]} 47... Kh6 {[%clk 0:00:08.6]} 48. Ke4 {[%clk 0:00:16.4]}
48... Kg6 {[%clk 0:00:06.4]} 49. Bg4 {[%clk 0:00:16.2]} 49... Kf6 {[%clk
0:00:04.7]} 50. Kd5 {[%clk 0:00:16.1]} 50... Ke7 {[%clk 0:00:01.5]} 51. Kc6
{[%clk 0:00:15.9]} 1-0

[Event "Betsys MČR v online bleskovém šachu 2021"]
[Site "Chess.com"]
[Date "2021.04.17"]
[Round "13"]
[White "Diamantidis_13"]
[Black "YoungMegaMind"]
[Result "1-0"]
[WhiteElo "2455"]
[BlackElo "2255"]
[TimeControl "180+1"]
[EndTime "11:11:52 PDT"]
[Termination "Uživatel Diamantidis_13 zvítězil na čas"]

1. Nf3 {[%clk 0:03:00.9]} 1... d5 {[%clk 0:02:59.2]} 2. d4 {[%clk 0:03:00.2]}
2... Nf6 {[%clk 0:02:57.6]} 3. c4 {[%clk 0:03:00.8]} 3... e6 {[%clk 0:02:57.5]}
4. g3 {[%clk 0:02:59.8]} 4... dxc4 {[%clk 0:02:55.2]} 5. Bg2 {[%clk 0:02:59.6]}
5... a6 {[%clk 0:02:55.3]} 6. O-O {[%clk 0:03:00.2]} 6... Nc6 {[%clk 0:02:53.9]}
7. e3 {[%clk 0:03:00.3]} 7... Rb8 {[%clk 0:02:51.8]} 8. Qe2 {[%clk 0:03:00.5]}
8... b5 {[%clk 0:02:43.2]} 9. b3 {[%clk 0:03:00.2]} 9... cxb3 {[%clk 0:02:35.1]}
10. axb3 {[%clk 0:03:01.1]} 10... Be7 {[%clk 0:02:31.6]} 11. Bd2 {[%clk
0:02:59]} 11... O-O {[%clk 0:02:30.2]} 12. Rc1 {[%clk 0:02:59.5]} 12... Nb4
{[%clk 0:02:29.9]} 13. Bxb4 {[%clk 0:02:56.4]} 13... Bxb4 {[%clk 0:02:29.3]} 14.
Ne5 {[%clk 0:02:57]} 14... Rb6 {[%clk 0:02:15.6]} 15. Nc6 {[%clk 0:02:55.9]}
15... Qd6 {[%clk 0:02:15.5]} 16. Ra2 {[%clk 0:02:21.5]} 16... Bd7 {[%clk
0:02:09.3]} 17. Rac2 {[%clk 0:02:21.2]} 17... Bxc6 {[%clk 0:01:51.4]} 18. Rxc6
{[%clk 0:02:16.1]} 18... Rxc6 {[%clk 0:01:30.3]} 19. Rxc6 {[%clk 0:02:17]} 19...
Qe7 {[%clk 0:01:26.1]} 20. Rxa6 {[%clk 0:02:16.8]} 20... c5 {[%clk 0:01:25.9]}
21. Qxb5 {[%clk 0:02:12.2]} 21... cxd4 {[%clk 0:01:23.5]} 22. exd4 {[%clk
0:02:13.1]} 22... Rc8 {[%clk 0:01:15.4]} 23. Rc6 {[%clk 0:02:05.7]} 23... Rd8
{[%clk 0:01:09.1]} 24. Rb6 {[%clk 0:01:55.9]} 24... Bd6 {[%clk 0:00:48.6]} 25.
Rb7 {[%clk 0:01:55.8]} 25... Qf8 {[%clk 0:00:46.5]} 26. Nd2 {[%clk 0:01:50]}
26... g6 {[%clk 0:00:37.4]} 27. Nf3 {[%clk 0:01:48.3]} 27... h6 {[%clk
0:00:32.5]} 28. h3 {[%clk 0:01:43.1]} 28... Nd5 {[%clk 0:00:31.8]} 29. Ne5
{[%clk 0:01:40.7]} 29... Bxe5 {[%clk 0:00:28.6]} 30. dxe5 {[%clk 0:01:41.6]}
30... Qa3 {[%clk 0:00:27.5]} 31. Bxd5 {[%clk 0:01:36.3]} 31... exd5 {[%clk
0:00:17.3]} 32. Qd3 {[%clk 0:01:13.1]} 32... Qa1+ {[%clk 0:00:16.2]} 33. Kg2
{[%clk 0:01:10.7]} 33... Qxe5 {[%clk 0:00:16.2]} 34. Qf3 {[%clk 0:01:08.9]}
34... Qe4 {[%clk 0:00:14.6]} 35. Rxf7 {[%clk 0:01:08.7]} 35... Rb8 {[%clk
0:00:13.4]} 36. Rf4 {[%clk 0:01:01.1]} 36... Qxf3+ {[%clk 0:00:12.9]} 37. Rxf3
{[%clk 0:01:02]} 37... Kg7 {[%clk 0:00:12.3]} 38. Rd3 {[%clk 0:00:58.4]} 38...
Rb4 {[%clk 0:00:12.3]} 39. f4 {[%clk 0:00:54]} 39... Kf6 {[%clk 0:00:12.4]} 40.
Kf3 {[%clk 0:00:54.5]} 40... Ke6 {[%clk 0:00:12.2]} 41. g4 {[%clk 0:00:54.6]}
41... h5 {[%clk 0:00:11.7]} 42. Kg3 {[%clk 0:00:51.3]} 42... Kf6 {[%clk
0:00:11.4]} 43. Kh4 {[%clk 0:00:35.2]} 43... Rxf4 {[%clk 0:00:08.4]} 44. Rxd5
{[%clk 0:00:34.7]} 44... hxg4 {[%clk 0:00:07.1]} 45. hxg4 {[%clk 0:00:32.8]}
45... Rb4 {[%clk 0:00:06.8]} 46. Rd3 {[%clk 0:00:30.4]} 46... Rb5 {[%clk
0:00:04.4]} 47. Re3 {[%clk 0:00:24.6]} 47... Rb4 {[%clk 0:00:04.3]} 48. Rf3+
{[%clk 0:00:22]} 48... Kg7 {[%clk 0:00:03.8]} 49. Kg5 {[%clk 0:00:20.6]} 49...
Rb5+ {[%clk 0:00:03.8]} 50. Kf4 {[%clk 0:00:21]} 50... Kf6 {[%clk 0:00:02.1]}
51. Ke4+ {[%clk 0:00:19.6]} 51... Kg5 {[%clk 0:00:01.4]} 52. Rg3 {[%clk
0:00:19.8]} 52... Rb4+ {[%clk 0:00:01.3]} 53. Kd5 {[%clk 0:00:17]} 1-0